[Event "Early-Titled-Tuesday-Blitz-May-28-2024"]
[Site "Chess.com"]
[Date "2024.05.28"]
[Round "4"]
[White "FMStan15"]
[Black "David_ATM"]
[Result "0-1"]
[WhiteElo "2147"]
[BlackElo "2440"]
[TimeControl "180+1"]
[EndTime "8:38:33 PDT"]
[Termination "David_ATM won by resignation"]

1. e4 {[%clk 0:03:00.9]} 1... e5 {[%clk 0:03:00.1]} 2. Nf3 {[%clk 0:02:55.2]}
2... Nc6 {[%clk 0:03:00.7]} 3. Bb5 {[%clk 0:02:54]} 3... a6 {[%clk 0:03:00.7]}
4. Bxc6 {[%clk 0:02:53.7]} 4... dxc6 {[%clk 0:03:01.6]} 5. O-O {[%clk
0:02:53.8]} 5... Bg4 {[%clk 0:03:00.8]} 6. h3 {[%clk 0:02:53]} 6... h5 {[%clk
0:02:59.1]} 7. d3 {[%clk 0:02:52.1]} 7... Qf6 {[%clk 0:02:58.9]} 8. Be3 {[%clk
0:02:52.2]} 8... Bxf3 {[%clk 0:02:58.7]} 9. Qxf3 {[%clk 0:02:51.7]} 9... Qxf3
{[%clk 0:02:58.9]} 10. gxf3 {[%clk 0:02:51.9]} 10... Bd6 {[%clk 0:02:58.5]} 11.
Nd2 {[%clk 0:02:51.8]} 11... f6 {[%clk 0:02:56.2]} 12. Rfb1 {[%clk 0:02:51]}
12... g5 {[%clk 0:02:53.9]} 13. Kf1 {[%clk 0:02:51.3]} 13... Ne7 {[%clk
0:02:49.7]} 14. Ke2 {[%clk 0:02:51.3]} 14... Ng6 {[%clk 0:02:49.9]} 15. b4
{[%clk 0:02:48.7]} 15... Kf7 {[%clk 0:02:41.5]} 16. a4 {[%clk 0:02:48.5]} 16...
h4 {[%clk 0:02:29.5]} 17. c3 {[%clk 0:02:44.8]} 17... Rhd8 {[%clk 0:02:24.9]}
18. Nc4 {[%clk 0:02:41.4]} 18... Rd7 {[%clk 0:02:21.8]} 19. Na5 {[%clk
0:02:36.3]} 19... Rb8 {[%clk 0:02:08.5]} 20. b5 {[%clk 0:02:13.9]} 20... cxb5
{[%clk 0:01:52.3]} 21. axb5 {[%clk 0:02:13.4]} 21... axb5 {[%clk 0:01:52.2]} 22.
Rxb5 {[%clk 0:02:12.7]} 22... b6 {[%clk 0:01:48]} 23. Nc4 {[%clk 0:02:09.5]}
23... Rdd8 {[%clk 0:01:44.2]} 24. Ra7 {[%clk 0:02:07.9]} 24... Ke6 {[%clk
0:01:36.4]} 25. Ra1 {[%clk 0:01:52.8]} 25... Ra8 {[%clk 0:01:35.8]} 26. Rbb1
{[%clk 0:01:51.5]} 26... Bc5 {[%clk 0:01:27.5]} 27. Bxc5 {[%clk 0:01:48.2]}
27... bxc5 {[%clk 0:01:28.4]} 28. Rxa8 {[%clk 0:01:39.5]} 28... Rxa8 {[%clk
0:01:29.3]} 29. Rb7 {[%clk 0:01:38.7]} 29... Nf4+ {[%clk 0:01:28.6]} 30. Kd2
{[%clk 0:01:29.1]} 30... Ra2+ {[%clk 0:01:27.4]} 31. Ke1 {[%clk 0:01:22.9]}
31... Nxd3+ {[%clk 0:01:24.4]} 32. Kf1 {[%clk 0:01:22.3]} 32... Rxf2+ {[%clk
0:01:03.6]} 33. Kg1 {[%clk 0:01:21.8]} 33... Rxf3 {[%clk 0:01:04.5]} 34. Rxc7
{[%clk 0:01:19.7]} 34... Rxh3 {[%clk 0:01:03.4]} 35. Rc6+ {[%clk 0:01:16.9]}
35... Kf7 {[%clk 0:00:55.1]} 36. Rc7+ {[%clk 0:01:07.9]} 36... Kg6 {[%clk
0:00:55]} 37. Nb6 {[%clk 0:00:54]} 37... Rg3+ {[%clk 0:00:52.5]} 38. Kh2 {[%clk
0:00:53]} 38... Ne1 {[%clk 0:00:45.3]} 39. Kh1 {[%clk 0:00:45.1]} 39... Nf3
{[%clk 0:00:43.7]} 0-1

[Event "Early-Titled-Tuesday-Blitz-May-28-2024"]
[Site "Chess.com"]
[Date "2024.05.28"]
[Round "4"]
[White "profedechess93"]
[Black "Viktoker"]
[Result "1-0"]
[WhiteElo "2593"]
[BlackElo "2395"]
[TimeControl "180+1"]
[EndTime "8:38:34 PDT"]
[Termination "profedechess93 won by resignation"]

1. e4 {[%clk 0:03:00.9]} 1... e5 {[%clk 0:02:59.3]} 2. Nf3 {[%clk 0:03:01]} 2...
Nc6 {[%clk 0:02:59.2]} 3. Bc4 {[%clk 0:03:00.8]} 3... Nf6 {[%clk 0:02:58.4]} 4.
d3 {[%clk 0:03:01]} 4... Be7 {[%clk 0:02:55.4]} 5. c3 {[%clk 0:03:01.2]} 5...
O-O {[%clk 0:02:50.1]} 6. Bb3 {[%clk 0:03:01.6]} 6... d6 {[%clk 0:02:43.7]} 7.
Qe2 {[%clk 0:03:01.8]} 7... Be6 {[%clk 0:02:40.3]} 8. Bc2 {[%clk 0:03:01.3]}
8... Re8 {[%clk 0:02:37.8]} 9. Nbd2 {[%clk 0:03:01.7]} 9... h6 {[%clk
0:02:37.4]} 10. Nf1 {[%clk 0:03:02]} 10... Bf8 {[%clk 0:02:37.1]} 11. h3 {[%clk
0:03:00.4]} 11... d5 {[%clk 0:02:37]} 12. g4 {[%clk 0:03:00.4]} 12... dxe4
{[%clk 0:02:31.4]} 13. dxe4 {[%clk 0:03:01.3]} 13... Nd7 {[%clk 0:01:44.7]} 14.
Ng3 {[%clk 0:02:59.5]} 14... Nb6 {[%clk 0:01:42.7]} 15. b3 {[%clk 0:02:37.7]}
15... a5 {[%clk 0:01:42.4]} 16. g5 {[%clk 0:02:36]} 16... hxg5 {[%clk
0:01:40.2]} 17. Nxg5 {[%clk 0:02:34.8]} 17... f6 {[%clk 0:01:11.2]} 18. Nxe6
{[%clk 0:02:30]} 18... Rxe6 {[%clk 0:01:12.1]} 19. Rg1 {[%clk 0:02:28.6]} 19...
Rd6 {[%clk 0:00:57.5]} 20. Nf5 {[%clk 0:02:26]} 20... Qe8 {[%clk 0:00:39.3]} 21.
Nxd6 {[%clk 0:02:24]} 21... cxd6 {[%clk 0:00:37.2]} 22. Be3 {[%clk 0:02:22.3]}
22... Nd7 {[%clk 0:00:33.6]} 23. Bd3 {[%clk 0:02:22.8]} 23... Nd8 {[%clk
0:00:19.9]} 24. Bc4+ {[%clk 0:02:20.3]} 24... Nf7 {[%clk 0:00:17.4]} 25. Qh5
{[%clk 0:02:20.1]} 25... b5 {[%clk 0:00:15.5]} 26. Bxb5 {[%clk 0:02:18]} 26...
Rc8 {[%clk 0:00:13.6]} 27. Bc4 {[%clk 0:02:17.8]} 27... Nc5 {[%clk 0:00:09.6]}
28. Rg4 {[%clk 0:02:16.9]} 28... Ne6 {[%clk 0:00:08.6]} 29. Rh4 {[%clk
0:02:15.2]} 29... Nfg5 {[%clk 0:00:03.5]} 30. Qh8+ {[%clk 0:02:05.6]} 30... Kf7
{[%clk 0:00:03.6]} 31. Bxg5 {[%clk 0:02:06.1]} 31... fxg5 {[%clk 0:00:03.7]} 32.
Qh5+ {[%clk 0:02:06.6]} 32... Ke7 {[%clk 0:00:04]} 33. Bxe6 {[%clk 0:02:03.2]}
33... Qxh5 {[%clk 0:00:04.3]} 34. Rxh5 {[%clk 0:02:03.2]} 34... Kxe6 {[%clk
0:00:04.9]} 35. c4 {[%clk 0:01:52.2]} 35... Be7 {[%clk 0:00:05.2]} 36. h4 {[%clk
0:01:46.7]} 36... gxh4 {[%clk 0:00:04.9]} 37. Ke2 {[%clk 0:01:44.5]} 37... g6
{[%clk 0:00:04.6]} 38. Rh6 {[%clk 0:01:44.1]} 38... Kf6 {[%clk 0:00:04.6]} 39.
Rg1 {[%clk 0:01:44.2]} 39... Rg8 {[%clk 0:00:03.7]} 40. Rxh4 {[%clk 0:01:44.7]}
40... g5 {[%clk 0:00:02.3]} 41. Rh7 {[%clk 0:01:44.6]} 41... g4 {[%clk
0:00:01.2]} 42. Rgh1 {[%clk 0:01:41.2]} 42... Rg6 {[%clk 0:00:01]} 43. R1h6
{[%clk 0:01:40]} 1-0

[Event "Early-Titled-Tuesday-Blitz-May-28-2024"]
[Site "Chess.com"]
[Date "2024.05.28"]
[Round "4"]
[White "TigrVShlyape"]
[Black "GeorgiosSouleidis"]
[Result "1-0"]
[WhiteElo "2908"]
[BlackElo "2602"]
[TimeControl "180+1"]
[EndTime "8:38:36 PDT"]
[Termination "TigrVShlyape won by resignation"]

1. e4 {[%clk 0:02:52.3]} 1... c5 {[%clk 0:02:55]} 2. Nf3 {[%clk 0:02:51.8]} 2...
e6 {[%clk 0:02:55.4]} 3. d4 {[%clk 0:02:51.4]} 3... cxd4 {[%clk 0:02:56.3]} 4.
Nxd4 {[%clk 0:02:51.7]} 4... Nf6 {[%clk 0:02:56.1]} 5. Nc3 {[%clk 0:02:51]} 5...
Nc6 {[%clk 0:02:56.2]} 6. Ndb5 {[%clk 0:02:50.7]} 6... Bc5 {[%clk 0:02:55.6]} 7.
Bf4 {[%clk 0:02:50.4]} 7... O-O {[%clk 0:02:55.3]} 8. Bc7 {[%clk 0:02:50.4]}
8... Qe7 {[%clk 0:02:55.7]} 9. Bd6 {[%clk 0:02:50.8]} 9... Bxd6 {[%clk
0:02:56.3]} 10. Qxd6 {[%clk 0:02:50.7]} 10... Qd8 {[%clk 0:02:56.8]} 11. Bd3
{[%clk 0:02:15.5]} 11... a6 {[%clk 0:02:51.4]} 12. Nd4 {[%clk 0:02:15.3]} 12...
Ne8 {[%clk 0:02:38.2]} 13. Nxc6 {[%clk 0:02:14.3]} 13... bxc6 {[%clk 0:02:38.7]}
14. Qc5 {[%clk 0:02:13]} 14... Rb8 {[%clk 0:02:25.8]} 15. b3 {[%clk 0:01:57.9]}
15... d6 {[%clk 0:01:34]} 16. Qe3 {[%clk 0:01:56.1]} 16... e5 {[%clk 0:01:17.2]}
17. O-O {[%clk 0:01:52.3]} 17... Nf6 {[%clk 0:01:17.1]} 18. Rad1 {[%clk
0:01:50.2]} 18... Qe7 {[%clk 0:01:15.6]} 19. Na4 {[%clk 0:01:45.4]} 19... a5
{[%clk 0:00:52.6]} 20. Rfe1 {[%clk 0:01:43.8]} 20... Rd8 {[%clk 0:00:49.4]} 21.
Bc4 {[%clk 0:01:36.3]} 21... Be6 {[%clk 0:00:46.7]} 22. Bxe6 {[%clk 0:01:34.1]}
22... Qxe6 {[%clk 0:00:46.6]} 23. Qc3 {[%clk 0:01:34]} 23... Rb4 {[%clk
0:00:28.1]} 24. Qxc6 {[%clk 0:01:32.3]} 24... h5 {[%clk 0:00:19.1]} 25. c4
{[%clk 0:01:21.9]} 25... Rbb8 {[%clk 0:00:12.6]} 26. Nb6 {[%clk 0:01:17.4]}
26... h4 {[%clk 0:00:07.2]} 27. h3 {[%clk 0:01:16.1]} 27... Nh5 {[%clk
0:00:05.1]} 28. Nd5 {[%clk 0:01:15.3]} 28... Nf4 {[%clk 0:00:02.1]} 29. Nxf4
{[%clk 0:01:14.8]} 29... exf4 {[%clk 0:00:03]} 30. Qd5 {[%clk 0:01:14.1]} 30...
Qg6 {[%clk 0:00:01.6]} 31. Qd3 {[%clk 0:01:08.6]} 31... Qg5 {[%clk 0:00:01.7]}
32. Qf3 {[%clk 0:01:07.4]} 32... a4 {[%clk 0:00:02.1]} 33. Rd5 {[%clk
0:01:05.9]} 33... axb3 {[%clk 0:00:02.4]} 1-0

[Event "Early-Titled-Tuesday-Blitz-May-28-2024"]
[Site "Chess.com"]
[Date "2024.05.28"]
[Round "4"]
[White "aljado"]
[Black "ural58"]
[Result "0-1"]
[WhiteElo "2164"]
[BlackElo "2444"]
[TimeControl "180+1"]
[EndTime "8:38:37 PDT"]
[Termination "ural58 won by resignation"]

1. e4 {[%clk 0:03:00.9]} 1... d5 {[%clk 0:02:36.7]} 2. d4 {[%clk 0:02:58.1]}
2... dxe4 {[%clk 0:02:35.2]} 3. Nc3 {[%clk 0:02:58.4]} 3... e5 {[%clk
0:02:34.9]} 4. d5 {[%clk 0:02:56.6]} 4... Nf6 {[%clk 0:02:33.3]} 5. Bg5 {[%clk
0:02:54.5]} 5... Bb4 {[%clk 0:02:32.8]} 6. Ne2 {[%clk 0:02:44.5]} 6... Qxd5
{[%clk 0:02:23.1]} 7. Bxf6 {[%clk 0:02:34.4]} 7... Qxd1+ {[%clk 0:02:16.7]} 8.
Rxd1 {[%clk 0:02:34.9]} 8... gxf6 {[%clk 0:02:16.8]} 9. a3 {[%clk 0:02:35.4]}
9... Bxc3+ {[%clk 0:02:16.6]} 10. Nxc3 {[%clk 0:02:35.3]} 10... Be6 {[%clk
0:01:59.8]} 11. Nxe4 {[%clk 0:02:34.2]} 11... Nd7 {[%clk 0:01:59.9]} 12. g3
{[%clk 0:02:22]} 12... O-O-O {[%clk 0:01:56.4]} 13. Bg2 {[%clk 0:02:21.4]} 13...
f5 {[%clk 0:01:51.9]} 14. Nc3 {[%clk 0:02:11]} 14... e4 {[%clk 0:01:46.5]} 15.
O-O {[%clk 0:02:08.6]} 15... Ne5 {[%clk 0:01:46.5]} 16. f4 {[%clk 0:01:56]}
16... Nc4 {[%clk 0:01:39.8]} 17. Rfe1 {[%clk 0:01:37.7]} 17... Nxb2 {[%clk
0:01:35.1]} 18. Rb1 {[%clk 0:01:37.3]} 18... Nc4 {[%clk 0:01:34.8]} 19. a4
{[%clk 0:01:35.2]} 19... Rd2 {[%clk 0:01:33.4]} 20. Nb5 {[%clk 0:01:31]} 20...
c6 {[%clk 0:01:17.3]} 21. Bf1 {[%clk 0:00:47.2]} 21... cxb5 {[%clk 0:01:14.6]}
22. Rxb5 {[%clk 0:00:45.4]} 22... Nd6 {[%clk 0:01:02.9]} 23. Rb2 {[%clk
0:00:41.2]} 23... Bc4 {[%clk 0:01:00]} 24. Bg2 {[%clk 0:00:36.3]} 24... Rd8
{[%clk 0:00:58.5]} 25. Reb1 {[%clk 0:00:35.8]} 25... Ba6 {[%clk 0:00:55.4]} 26.
h3 {[%clk 0:00:34.6]} 26... Nc4 {[%clk 0:00:54.8]} 27. Rb4 {[%clk 0:00:32.4]}
27... Ne3 {[%clk 0:00:51.7]} 28. Bh1 {[%clk 0:00:30.4]} 28... Rd1+ {[%clk
0:00:50.9]} 29. Kf2 {[%clk 0:00:28.6]} 29... Nxc2 {[%clk 0:00:43.9]} 0-1

[Event "Early-Titled-Tuesday-Blitz-May-28-2024"]
[Site "Chess.com"]
[Date "2024.05.28"]
[Round "4"]
[White "Dolphin_2010"]
[Black "wonderfultime"]
[Result "1-0"]
[WhiteElo "2760"]
[BlackElo "3010"]
[TimeControl "180+1"]
[EndTime "8:38:41 PDT"]
[Termination "Dolphin_2010 won by resignation"]

1. d4 {[%clk 0:03:00.9]} 1... d5 {[%clk 0:02:58.5]} 2. c4 {[%clk 0:02:55]} 2...
c6 {[%clk 0:02:58.4]} 3. Nc3 {[%clk 0:02:53.4]} 3... Nf6 {[%clk 0:02:58]} 4.
cxd5 {[%clk 0:02:53.9]} 4... cxd5 {[%clk 0:02:58]} 5. Bf4 {[%clk 0:02:54.5]}
5... Nc6 {[%clk 0:02:58.2]} 6. e3 {[%clk 0:02:54.8]} 6... a6 {[%clk 0:02:58.7]}
7. Bd3 {[%clk 0:02:54.9]} 7... Bg4 {[%clk 0:02:59]} 8. Nf3 {[%clk 0:02:53.8]}
8... e6 {[%clk 0:02:59.4]} 9. O-O {[%clk 0:02:53.8]} 9... Bd6 {[%clk 0:02:58.7]}
10. Bxd6 {[%clk 0:02:53.3]} 10... Qxd6 {[%clk 0:02:59.6]} 11. h3 {[%clk
0:02:53.9]} 11... Bxf3 {[%clk 0:03:00]} 12. Qxf3 {[%clk 0:02:54.5]} 12... O-O
{[%clk 0:03:00.7]} 13. Rac1 {[%clk 0:02:54.8]} 13... Rac8 {[%clk 0:03:01.3]} 14.
a3 {[%clk 0:02:55.2]} 14... Rc7 {[%clk 0:03:01.7]} 15. Na4 {[%clk 0:02:53.3]}
15... Rfc8 {[%clk 0:03:01.9]} 16. Rc3 {[%clk 0:02:53]} 16... e5 {[%clk
0:02:47.7]} 17. Qg3 {[%clk 0:02:37.3]} 17... g6 {[%clk 0:02:37.1]} 18. Rfc1
{[%clk 0:02:27.4]} 18... Re8 {[%clk 0:02:22.7]} 19. dxe5 {[%clk 0:02:25.6]}
19... Rxe5 {[%clk 0:02:23.6]} 20. Nc5 {[%clk 0:02:10.8]} 20... d4 {[%clk
0:02:09]} 21. Nxb7 {[%clk 0:01:46.5]} 21... Qd5 {[%clk 0:01:22.4]} 22. Rxc6
{[%clk 0:00:51.8]} 22... Rxc6 {[%clk 0:01:15.9]} 23. Rxc6 {[%clk 0:00:52.7]}
23... dxe3 {[%clk 0:01:15.4]} 24. Rxf6 {[%clk 0:00:50.1]} 24... Rg5 {[%clk
0:01:09.9]} 25. Rd6 {[%clk 0:00:19.5]} 25... exf2+ {[%clk 0:01:01.5]} 26. Kxf2
{[%clk 0:00:06.9]} 26... Qxb7 {[%clk 0:00:52]} 27. Qxg5 {[%clk 0:00:06.8]} 27...
Qxb2+ {[%clk 0:00:49.5]} 28. Be2 {[%clk 0:00:07.4]} 28... Qxa3 {[%clk
0:00:48.1]} 29. Qe5 {[%clk 0:00:05.2]} 1-0

[Event "Early-Titled-Tuesday-Blitz-May-28-2024"]
[Site "Chess.com"]
[Date "2024.05.28"]
[Round "4"]
[White "Qvalda"]
[Black "Lion-Al-Messi"]
[Result "0-1"]
[WhiteElo "2414"]
[BlackElo "2644"]
[TimeControl "180+1"]
[EndTime "8:38:42 PDT"]
[Termination "Lion-Al-Messi won by checkmate"]

1. d4 {[%clk 0:03:00.9]} 1... Nf6 {[%clk 0:03:00.1]} 2. c4 {[%clk 0:03:00.4]}
2... b6 {[%clk 0:03:00.2]} 3. Nc3 {[%clk 0:02:57]} 3... Bb7 {[%clk 0:03:00.3]}
4. Qc2 {[%clk 0:02:56.5]} 4... d5 {[%clk 0:03:00.1]} 5. cxd5 {[%clk 0:02:55.3]}
5... Nxd5 {[%clk 0:03:01]} 6. e4 {[%clk 0:02:55]} 6... Nxc3 {[%clk 0:03:01.2]}
7. bxc3 {[%clk 0:02:55.9]} 7... e6 {[%clk 0:03:01.5]} 8. Nf3 {[%clk 0:02:54.3]}
8... Be7 {[%clk 0:03:01.6]} 9. Bb5+ {[%clk 0:02:47]} 9... c6 {[%clk 0:02:58]}
10. Bd3 {[%clk 0:02:46.9]} 10... c5 {[%clk 0:02:56]} 11. O-O {[%clk 0:02:45.6]}
11... Nd7 {[%clk 0:02:54.4]} 12. a4 {[%clk 0:02:38.9]} 12... Rc8 {[%clk
0:02:50]} 13. Qe2 {[%clk 0:02:31]} 13... Qc7 {[%clk 0:02:49]} 14. a5 {[%clk
0:02:27.9]} 14... bxa5 {[%clk 0:02:46.1]} 15. d5 {[%clk 0:02:17.5]} 15... e5
{[%clk 0:02:36]} 16. c4 {[%clk 0:02:11]} 16... O-O {[%clk 0:02:34.8]} 17. Bd2
{[%clk 0:02:09.7]} 17... Nb6 {[%clk 0:02:32.8]} 18. Bxa5 {[%clk 0:02:03.3]}
18... Qd6 {[%clk 0:02:31.4]} 19. Rfb1 {[%clk 0:01:57.9]} 19... f6 {[%clk
0:02:29.8]} 20. Nh4 {[%clk 0:01:52.3]} 20... g6 {[%clk 0:02:29.2]} 21. Qg4
{[%clk 0:01:14]} 21... Kf7 {[%clk 0:02:28.3]} 22. h3 {[%clk 0:00:57.5]} 22...
Ra8 {[%clk 0:02:27.5]} 23. Rb2 {[%clk 0:00:54]} 23... Bc8 {[%clk 0:02:27.1]} 24.
Qe2 {[%clk 0:00:50.2]} 24... Bd7 {[%clk 0:02:26.9]} 25. Rab1 {[%clk 0:00:46.3]}
25... Rfb8 {[%clk 0:02:26.9]} 26. Qd2 {[%clk 0:00:39.2]} 26... Kg7 {[%clk
0:02:20.7]} 27. g4 {[%clk 0:00:32.4]} 27... Na4 {[%clk 0:02:19.2]} 28. Rxb8
{[%clk 0:00:25.7]} 28... Rxb8 {[%clk 0:02:20.1]} 29. Rxb8 {[%clk 0:00:25.3]}
29... Qxb8 {[%clk 0:02:20.6]} 30. Ng2 {[%clk 0:00:19]} 30... Qb2 {[%clk
0:02:17.2]} 31. Qe3 {[%clk 0:00:14.6]} 31... Nc3 {[%clk 0:02:11.3]} 32. h4
{[%clk 0:00:11.5]} 32... Qa1+ {[%clk 0:02:11.4]} 33. Kh2 {[%clk 0:00:10.9]}
33... Qxa5 {[%clk 0:02:11.6]} 34. h5 {[%clk 0:00:10.4]} 34... Qa2 {[%clk
0:02:01.4]} 35. h6+ {[%clk 0:00:09.9]} 35... Kf7 {[%clk 0:01:59.8]} 36. g5
{[%clk 0:00:10]} 36... Nd1 {[%clk 0:01:56.1]} 37. Qc1 {[%clk 0:00:06.7]} 37...
Nxf2 {[%clk 0:01:54.7]} 38. Bf1 {[%clk 0:00:06.2]} 38... Ng4+ {[%clk 0:01:53.2]}
39. Kh1 {[%clk 0:00:05.7]} 39... Qf2 {[%clk 0:01:51.1]} 40. gxf6 {[%clk
0:00:05.7]} 40... Nxf6 {[%clk 0:01:48.5]} 41. d6 {[%clk 0:00:05.7]} 41... Nxe4
{[%clk 0:01:44.6]} 42. dxe7 {[%clk 0:00:04.6]} 42... Ng3+ {[%clk 0:01:44.9]} 43.
Kh2 {[%clk 0:00:04.9]} 43... Nxf1+ {[%clk 0:01:45.8]} 44. Kh1 {[%clk 0:00:03.5]}
44... Ng3+ {[%clk 0:01:45.7]} 45. Kh2 {[%clk 0:00:04]} 45... Bc6 {[%clk
0:01:34.1]} 46. e8=Q+ {[%clk 0:00:02.9]} 46... Kxe8 {[%clk 0:01:33.7]} 47. Kh3
{[%clk 0:00:02]} 47... Qxg2+ {[%clk 0:01:33.2]} 48. Kg4 {[%clk 0:00:02.1]} 48...
Ne2+ {[%clk 0:01:33.2]} 49. Kh4 {[%clk 0:00:01.8]} 49... Qg3# {[%clk 0:01:34]}
0-1

[Event "Early-Titled-Tuesday-Blitz-May-28-2024"]
[Site "Chess.com"]
[Date "2024.05.28"]
[Round "4"]
[White "RianKapriaga"]
[Black "Stanbad1"]
[Result "0-1"]
[WhiteElo "2317"]
[BlackElo "2638"]
[TimeControl "180+1"]
[EndTime "8:38:43 PDT"]
[Termination "Stanbad1 won on time"]

1. d4 {[%clk 0:03:00.9]} 1... Nf6 {[%clk 0:02:59.6]} 2. Nf3 {[%clk 0:02:56.7]}
2... g6 {[%clk 0:02:59.5]} 3. c4 {[%clk 0:02:54.8]} 3... Bg7 {[%clk 0:02:59.2]}
4. Nc3 {[%clk 0:02:55.1]} 4... d6 {[%clk 0:02:58.5]} 5. Bg5 {[%clk 0:02:55.1]}
5... O-O {[%clk 0:02:58.8]} 6. e3 {[%clk 0:02:55.5]} 6... c5 {[%clk 0:02:56.4]}
7. d5 {[%clk 0:02:54.9]} 7... a6 {[%clk 0:02:54.6]} 8. Nd2 {[%clk 0:02:51.3]}
8... b5 {[%clk 0:02:54]} 9. cxb5 {[%clk 0:02:50.2]} 9... axb5 {[%clk 0:02:54.9]}
10. Bxb5 {[%clk 0:02:48.9]} 10... Na6 {[%clk 0:02:54.4]} 11. O-O {[%clk
0:02:44]} 11... Nc7 {[%clk 0:02:53.4]} 12. Bc4 {[%clk 0:02:37.5]} 12... Ba6
{[%clk 0:02:51.4]} 13. e4 {[%clk 0:02:33.7]} 13... e6 {[%clk 0:02:40.5]} 14. Re1
{[%clk 0:02:16.5]} 14... exd5 {[%clk 0:02:39.2]} 15. exd5 {[%clk 0:02:09.4]}
15... h6 {[%clk 0:02:35.6]} 16. Bh4 {[%clk 0:02:05.4]} 16... Qd7 {[%clk
0:02:31.6]} 17. Qf3 {[%clk 0:01:52.5]} 17... g5 {[%clk 0:02:25.3]} 18. Bg3
{[%clk 0:01:51.7]} 18... Rfe8 {[%clk 0:02:23.3]} 19. h3 {[%clk 0:01:43]} 19...
Rab8 {[%clk 0:02:14.2]} 20. Bxa6 {[%clk 0:01:41.7]} 20... Nxa6 {[%clk
0:02:15.1]} 21. Nc4 {[%clk 0:01:41.7]} 21... Rxe1+ {[%clk 0:02:08.2]} 22. Rxe1
{[%clk 0:01:40.1]} 22... Ne8 {[%clk 0:02:08.7]} 23. Ne4 {[%clk 0:01:35]} 23...
f5 {[%clk 0:02:03.3]} 24. Nexd6 {[%clk 0:00:54]} 24... f4 {[%clk 0:02:02.7]} 25.
Nxe8 {[%clk 0:00:39.1]} 25... Rxe8 {[%clk 0:02:02.5]} 26. Rxe8+ {[%clk
0:00:39.1]} 26... Qxe8 {[%clk 0:02:03]} 27. d6 {[%clk 0:00:35]} 27... fxg3
{[%clk 0:01:57.8]} 28. fxg3 {[%clk 0:00:25.9]} 28... Qe1+ {[%clk 0:01:29.5]} 29.
Kh2 {[%clk 0:00:24.7]} 29... Bd4 {[%clk 0:01:29.2]} 30. Qd5+ {[%clk 0:00:16.3]}
30... Kg7 {[%clk 0:01:24.9]} 31. Qxd4+ {[%clk 0:00:12.3]} 31... cxd4 {[%clk
0:01:23.6]} 32. d7 {[%clk 0:00:12.2]} 32... Qe7 {[%clk 0:01:22.9]} 33. Ne5
{[%clk 0:00:05.5]} 33... Nc5 {[%clk 0:01:12.7]} 0-1

[Event "Early-Titled-Tuesday-Blitz-May-28-2024"]
[Site "Chess.com"]
[Date "2024.05.28"]
[Round "4"]
[White "ubdip"]
[Black "Tagir45"]
[Result "0-1"]
[WhiteElo "2446"]
[BlackElo "2633"]
[TimeControl "180+1"]
[EndTime "8:38:43 PDT"]
[Termination "Tagir45 won by checkmate"]

1. c4 {[%clk 0:03:00.9]} 1... e5 {[%clk 0:02:53.1]} 2. Nc3 {[%clk 0:03:00.5]}
2... Nf6 {[%clk 0:02:51.8]} 3. Nf3 {[%clk 0:03:01]} 3... Nc6 {[%clk 0:02:50.9]}
4. e3 {[%clk 0:03:00.7]} 4... d5 {[%clk 0:02:50.7]} 5. cxd5 {[%clk 0:03:00.1]}
5... Nxd5 {[%clk 0:02:51.6]} 6. Bb5 {[%clk 0:03:00.1]} 6... Nxc3 {[%clk
0:02:44]} 7. bxc3 {[%clk 0:03:01]} 7... Bd6 {[%clk 0:02:43.1]} 8. d4 {[%clk
0:02:52.5]} 8... exd4 {[%clk 0:02:34]} 9. cxd4 {[%clk 0:02:50]} 9... O-O {[%clk
0:02:33.7]} 10. O-O {[%clk 0:02:45.4]} 10... Bg4 {[%clk 0:02:21.9]} 11. h3
{[%clk 0:02:41.8]} 11... Bh5 {[%clk 0:02:20.1]} 12. Bb2 {[%clk 0:02:31.7]} 12...
a6 {[%clk 0:01:58.2]} 13. Be2 {[%clk 0:02:31.4]} 13... Re8 {[%clk 0:01:57]} 14.
Nd2 {[%clk 0:02:18.8]} 14... Bxe2 {[%clk 0:01:52.8]} 15. Qxe2 {[%clk 0:02:19.7]}
15... Qh4 {[%clk 0:01:44]} 16. Qf3 {[%clk 0:01:54.4]} 16... Re6 {[%clk 0:01:36]}
17. Nc4 {[%clk 0:01:41.1]} 17... Rf6 {[%clk 0:01:18.6]} 18. Qg4 {[%clk
0:01:40.2]} 18... Qxg4 {[%clk 0:01:16.3]} 19. hxg4 {[%clk 0:01:41.1]} 19... Rg6
{[%clk 0:01:15.5]} 20. Nxd6 {[%clk 0:01:35.8]} 20... Rxd6 {[%clk 0:01:14.6]} 21.
Rac1 {[%clk 0:01:30]} 21... Rd7 {[%clk 0:01:14.6]} 22. Rc5 {[%clk 0:01:25.7]}
22... Nd8 {[%clk 0:01:08.2]} 23. Rfc1 {[%clk 0:01:22.5]} 23... Ne6 {[%clk
0:01:07.3]} 24. Re5 {[%clk 0:01:21.4]} 24... c6 {[%clk 0:01:06.2]} 25. f4 {[%clk
0:01:15.9]} 25... Rad8 {[%clk 0:01:05.2]} 26. Ba3 {[%clk 0:01:12.6]} 26... Rd5
{[%clk 0:01:04.1]} 27. Kf2 {[%clk 0:01:06.2]} 27... Rxe5 {[%clk 0:01:03.1]} 28.
fxe5 {[%clk 0:01:04.5]} 28... Rd5 {[%clk 0:01:03.5]} 29. Bd6 {[%clk 0:01:01]}
29... Ra5 {[%clk 0:01:00.6]} 30. a3 {[%clk 0:01:00.8]} 30... Rb5 {[%clk
0:00:54.3]} 31. Kf3 {[%clk 0:00:56.5]} 31... Rb3 {[%clk 0:00:50.9]} 32. Ke4
{[%clk 0:00:54]} 32... Ng5+ {[%clk 0:00:46.7]} 33. Kf5 {[%clk 0:00:53.9]} 33...
h6 {[%clk 0:00:45.8]} 34. Re1 {[%clk 0:00:47.9]} 34... Rb2 {[%clk 0:00:44.7]}
35. Rg1 {[%clk 0:00:28.8]} 35... Rf2# {[%clk 0:00:44.1]} 0-1